bitfinex-derivatives/quotes_ETHF0:USTF0_20250606
["timestamp","ask_amount","ask_price","bid_price","bid_amount"]
[1749232156929,0.80292,2488.7,2488.6,3.21382277]
[1749232157133,2.29992881,2488.7,2488.6,3.21382277]
[1749232157528,2.29992881,2488.7,2488.6,4.51902277]
[1749232159144,7.18392881,2488.7,2488.6,4.51902277]
[1749232159439,7.18392881,2488.7,2488.6,3.21382277]
[1749232160441,7.18392881,2488.7,2488.6,4.59932277]
[1749232162334,7.18392881,2488.7,2488.6,3.21382277]
[1749232165741,2.29992881,2488.7,2488.6,3.21382277]
[1749232165948,8.19190906,2488.7,2488.6,0.00602277]
[1749232166133,9.54680906,2488.7,2488.6,2.77e-06]
[1749232166739,0.80304,2488.3,2488.2,0.07133351]
[1749232166948,8.08202906,2488.3,2488.2,0.07133351]
[1749232167643,0.80308,2488.2,2488.1,1.2996]
[1749232167847,2.30008881,2488.2,2488.1,1.2996]
[1749232168743,0.80311,2488.1,2488.0,1.31721515]
[1749232169448,0.80311,2488.1,2488.0,0.66371515]
[1749232169843,2.30011881,2488.1,2488.0,0.00401515]
[1749232174749,2.30011881,2488.1,2488.0,0.07534866]
[1749232176647,0.80311,2488.1,2488.0,0.07534866]
[1749232176847,0.80308,2488.3,2488.2,0.80306]
[1749232177054,0.80307,2488.2,2488.1,5.39179]
[1749232177650,0.80307,2488.2,2488.1,4.5887]
[1749232178350,0.80307,2488.2,2488.1,5.3918]
[1749232184455,0.80307,2488.3,2488.2,0.80302]
[1749232184657,0.80307,2488.3,2488.2,2.17282]
[1749232184857,0.80307,2488.3,2488.2,2.83982]
[1749232185258,2.0075,2488.5,2488.2,2.0368]
[1749232185559,0.80304,2488.3,2488.2,0.667]
[1749232185861,0.80304,2488.3,2488.2,1.47007]
[1749232186866,0.6712,2489.0,2488.2,5.667]
[1749232187159,0.00602277,2489.1,2489.0,0.80282]
[1749232187659,0.00602277,2489.1,2489.0,1.48142]
[1749232188159,0.00602277,2489.1,2489.0,6.48142]
[1749232188357,5.69358,2489.8,2489.3,2.0068]
[1749232188660,2.00625,2490.0,2489.5,3.2078]
[1749232188860,0.80263,2489.6,2489.5,4.01044]
[1749232189463,0.80261,2489.7,2489.6,0.80263]
[1749232189753,0.80261,2489.7,2489.6,1.43483]
[1749232189960,0.00602277,2489.8,2489.7,0.8026]
[1749232190758,0.80244,2490.2,2489.8,2.00638]
[1749232190966,0.80244,2490.2,2490.1,0.80245]
[1749232191155,3.2078,2490.7,2490.0,3.2078]
[1749232191359,0.80238,2490.4,2490.3,0.80239]
[1749232191858,0.80835277,2490.6,2490.1,1.3053]
[1749232192063,2.30536158,2490.6,2490.4,0.80234]
[1749232192262,1.49700881,2490.5,2490.1,1.3053]
[1749232192460,0.80241,2490.3,2490.2,0.80242]
[1749232193061,0.00602277,2490.6,2490.1,1.3053]
[1749232193269,0.80239,2490.4,2490.3,0.8024]
[1749232194671,0.80242,2490.3,2490.2,0.80242]
[1749232195164,0.80242,2490.3,2490.2,0.80241]
[1749232195366,0.80238,2490.4,2490.3,0.80237]
[1749232195969,0.80243,2490.3,2490.2,0.80242]
[1749232196362,0.80239,2490.4,2490.3,0.80238]
[1749232196566,0.80243,2490.3,2490.2,0.8024]
[1749232196971,0.80243,2490.3,2490.2,2.0759]
[1749232197570,0.80239,2490.4,2490.3,0.80239]
[1749232197773,2.29939881,2490.4,2490.3,0.80239]
[1749232197968,0.80239,2490.4,2490.3,0.80239]
[1749232200971,3.50299881,2490.4,2490.0,3.8633]
[1749232201270,1.49700881,2490.1,2490.0,4.0103]
[1749232201466,1.47871,2490.3,2490.2,0.80243]
[1749232201669,2.97571881,2490.3,2490.2,0.80243]
[1749232202071,0.80247,2490.2,2490.1,0.80244]
[1749232203779,0.80247,2490.1,2490.0,3.2078]
[1749232203975,7.20947881,2490.1,2490.0,3.2078]
[1749232204673,8.56967881,2490.1,2490.0,3.2078]
[1749232206473,8.56967881,2490.1,2490.0,4.01029]
[1749232206474,7.20947881,2490.1,2490.0,4.01029]
[1749232207370,2.29947881,2490.1,2490.0,0.80249]
[1749232209271,0.80256,2489.9,2489.8,0.80252]
[1749232211485,0.80256,2489.9,2489.8,2.13652]
[1749232212390,0.80251,2490.0,2489.9,0.80248]
[1749232212687,2.29951881,2490.0,2489.9,0.80248]
[1749232212888,0.80251,2490.0,2489.9,0.80248]
[1749232213090,0.80251,2490.0,2489.9,0.4110345]
[1749232215586,0.6763,2490.3,2490.2,0.80243]
[1749232215790,1.5681016,2490.3,2490.2,0.80243]
[1749232216196,2.3705016,2490.3,2490.2,0.80243]
[1749232217295,1.5681016,2490.3,2490.2,0.80243]
[1749232217591,0.00602277,2490.6,2490.5,0.80233]
[1749232217791,0.90035735,2490.6,2490.5,4.01013]
[1749232219084,4.5019,2491.4,2490.9,2.00549]
[1749232219290,3.11561791,2491.8,2491.3,3.2078]
[1749232219494,2.29902881,2491.5,2491.4,0.80202]
[1749232219790,2.29901881,2491.5,2491.4,0.80202]
[1749232219989,0.80201,2491.5,2491.4,2.15382]
[1749232220285,0.00602277,2491.7,2491.5,0.80201]
[1749232220488,0.80799277,2491.7,2491.6,3.2078]
[1749232220995,0.00602277,2491.7,2491.6,4.00978]
[1749232221189,0.00602277,2491.7,2491.6,10.26608]
[1749232222091,3.2078,2492.7,2491.7,2.00481]
[1749232222296,0.80175,2492.3,2492.2,0.80177]
[1749232222596,2.29874881,2492.4,2492.2,1.3473]
[1749232222796,0.80174,2492.4,2492.3,0.80175]
[1749232223195,0.80175,2492.3,2492.2,2.14907]
[1749232223598,0.80175,2492.3,2492.1,8.8966]
[1749232223599,0.80179,2492.2,2492.1,8.8966]
[1749232223895,0.80179,2492.2,2492.1,8.0948]
[1749232224094,0.80179,2492.2,2492.1,8.89662]
[1749232224795,0.80177,2492.3,2492.2,0.80178]
[1749232224996,0.80179,2492.2,2492.1,8.8966]
[1749232225196,0.80177,2492.3,2492.2,0.80178]
[1749232226695,0.80179,2492.2,2492.1,9.4537]
[1749232227090,0.80177,2492.3,2492.2,0.80178]
[1749232227994,0.00602277,2492.6,2492.5,0.80169]
[1749232228501,0.80768277,2492.6,2492.5,0.80169]
[1749232228694,0.80768277,2492.6,2492.5,2.10809]
[1749232228998,0.00602277,2492.6,2492.5,2.10809]
[1749232233999,0.80166,2492.6,2492.5,6.99209]
[1749232234197,0.80165,2492.7,2492.6,0.80162]
[1749232234407,0.80161,2492.8,2492.7,0.80163]
[1749232234596,0.80161,2492.8,2492.7,4.00943]
[1749232234795,0.6646,2493.1,2492.7,3.2078]
[1749232234998,1.49700881,2492.9,2492.8,2.8137]
[1749232235198,2.16763158,2493.1,2492.8,2.0121]
[1749232235500,0.80156,2492.9,2492.8,2.81368]
[1749232236996,0.80156,2492.9,2492.8,1.43398]
[1749232238703,0.80156,2492.9,2492.8,0.80158]
[1749232239100,0.80156,2492.9,2492.8,5.68458]
[1749232241399,2.29856881,2492.9,2492.8,4.883]
[1749232241607,0.8016,2492.8,2492.7,3.21382277]
[1749232241798,2.29860881,2492.8,2492.7,3.21382277]
[1749232241998,2.29860881,2492.8,2492.7,4.01545277]
[1749232242306,0.67062277,2493.1,2492.9,0.80153]
[1749232242614,0.8016,2492.9,2492.8,0.80158]
[1749232245309,0.80156,2493.0,2492.9,0.80153]
[1749232245507,2.29856881,2493.0,2492.9,0.80153]
[1749232247302,3.188382,2493.0,2492.9,0.80153]
[1749232248207,3.188382,2493.0,2492.8,1.9794]
[1749232248411,2.29856881,2493.0,2492.9,0.80153]
[1749232248709,3.18893695,2493.0,2492.9,0.80153]
[1749232248910,0.8016,2492.9,2492.8,0.80158]
[1749232249107,1.69196814,2492.9,2492.8,0.80158]
[1749232251514,0.8016,2492.8,2492.7,4.01542277]
[1749232251710,3.18897695,2492.8,2492.7,8.86942277]
[1749232251912,1.69196814,2492.8,2492.7,8.86942277]
[1749232252113,0.89036814,2492.8,2492.7,8.86942277]
[1749232252413,1.69196814,2492.8,2492.7,8.86942277]
[1749232252615,0.89036814,2492.8,2492.7,8.86942277]
[1749232254612,1.69196814,2492.8,2492.7,8.86942277]
[1749232255016,0.89036814,2492.8,2492.7,8.86942277]
[1749232255314,1.69196814,2492.8,2492.7,8.86942277]
[1749232255815,1.6957795,2492.8,2492.7,8.86942277]
[1749232256212,0.8941795,2492.8,2492.7,8.86942277]
[1749232256410,0.8941795,2492.8,2492.7,4.01542277]
[1749232256714,0.8941795,2492.8,2492.7,8.86942277]
[1749232256909,1.6957795,2492.8,2492.7,8.86942277]
[1749232258520,0.8941795,2492.8,2492.7,8.47843268]
[1749232259917,0.07133351,2493.0,2492.9,0.80156]
[1749232260509,0.07133351,2493.0,2492.9,1.47626]
[1749232262408,3.51e-06,2493.0,2492.9,1.47626]
[1749232262612,7.96961791,2493.8,2492.9,1.47626]
[1749232262613,3.11561791,2493.9,2493.8,0.80128]
[1749232262811,1.49700881,2493.9,2493.8,8.86308]
[1749232263212,1.3257,2494.2,2494.1,0.80118]
[1749232263614,3.62389881,2494.2,2494.1,0.80118]
[1749232264316,0.8012,2494.1,2494.0,0.80119]
[1749232264820,5.21032,2494.7,2494.0,1.2811]
[1749232264821,3.2078,2494.7,2494.0,1.2811]
[1749232265015,0.80114,2494.3,2494.2,4.00892]
[1749232265215,0.80114,2494.3,2494.2,8.86292]
[1749232265417,1.49700881,2494.3,2494.2,8.86292]
[1749232265621,2.29812881,2494.3,2494.2,8.86292]
[1749232266124,2.29812881,2494.3,2494.2,8.0618]
[1749232266319,2.29812881,2494.3,2494.2,8.86295]
[1749232266717,1.49700881,2494.3,2494.2,8.86295]
[1749232267118,2.29812881,2494.3,2494.2,8.86295]
[1749232268320,2.00232,2494.9,2494.3,2.00278]
[1749232268516,1.49700881,2494.3,2494.1,8.0608]
[1749232268717,0.80121,2494.0,2493.9,4.85902277]
[1749232268912,2.29821881,2494.0,2493.9,0.00602277]
[1749232269122,10.50601881,2494.0,2493.9,2.77e-06]
[1749232269323,0.80144,2493.3,2493.2,3.2078]
[1749232269519,1.49700604,2493.3,2493.2,3.2078]
[1749232269829,1.49700604,2493.3,2493.0,0.80151]
[1749232270026,1.49700604,2493.1,2493.0,0.80151]
[1749232270323,1.49700604,2493.1,2493.0,5.65351]
[1749232270725,2.29850604,2493.1,2493.0,5.65351]
[1749232270919,2.29850604,2493.1,2493.0,4.852]
[1749232271124,0.07133351,2493.0,2492.9,8.86137]
[1749232271322,2.36986955,2493.0,2492.9,8.0598]
[1749232271814,2.36986955,2493.0,2492.9,8.86137]
[1749232272519,2.36986955,2493.0,2492.9,8.86237]
[1749232273318,2.36986955,2493.0,2492.9,8.0608]
[1749232273519,2.36986955,2493.0,2492.9,8.86237]
[1749232273822,2.36986955,2493.0,2492.9,3.2078]
[1749232274528,2.36986955,2493.0,2492.9,4.00937]
[1749232276544,2.36986955,2493.0,2492.9,3.2078]
[1749232276728,2.36986955,2493.0,2492.9,4.00937]
[1749232276927,2.36986955,2493.0,2492.9,3.2078]
[1749232278135,2.36986955,2493.0,2492.9,4.00937]
[1749232278335,2.36986955,2493.0,2492.9,8.86237]
[1749232279231,2.36986955,2493.0,2492.9,8.0608]
[1749232279532,2.36986955,2493.0,2492.9,8.86237]
[1749232279934,2.36986955,2493.0,2492.9,4.00937]
[1749232282131,2.36986955,2493.0,2492.9,3.2078]
[1749232282334,2.36986955,2493.0,2492.9,4.00937]
[1749232283029,1.56833955,2493.0,2492.9,4.00937]
[1749232283234,2.36986955,2493.0,2492.9,4.00937]
[1749232283434,2.36986955,2493.0,2492.9,3.2078]
[1749232287936,2.36986955,2493.0,2492.9,4.00937]
[1749232288134,2.36986955,2493.0,2492.9,5.37457]
[1749232288438,2.36986955,2493.0,2492.9,4.00937]
[1749232289944,2.36986955,2493.0,2492.9,3.2078]
[1749232290835,1.49700604,2492.9,2492.0,3.2078]
[1749232291040,0.80182,2492.1,2492.0,3.2078]
[1749232291342,0.80182,2492.1,2492.0,4.00966]
[1749232291740,0.80182,2492.2,2492.1,0.80179]
[1749232292243,1.47268,2492.3,2492.2,0.80179]
[1749232292738,0.80179,2492.2,2492.1,2.1617]
[1749232292941,2.29879604,2492.2,2492.1,2.1617]
[1749232293146,0.80179,2492.2,2492.1,2.1617]
[1749232294233,0.80179,2492.2,2492.1,0.8018]
[1749232294433,0.80186,2492.0,2491.9,0.00602277]
[1749232294635,1.49700604,2492.0,2491.9,0.80791277]
[1749232294831,1.47269,2492.3,2492.2,0.80179]
[1749232294832,0.80178,2492.3,2492.2,0.80179]
[1749232295066,2.29878604,2492.3,2492.2,0.80179]
[1749232295430,2.29878604,2492.3,2492.0,5.1771]
[1749232295635,2.29878604,2492.3,2492.2,0.80179]
[1749232295831,0.00602277,2492.4,2492.3,0.80176]
[1749232296245,2.30475881,2492.4,2492.3,0.80176]
[1749232296637,0.80775277,2492.4,2492.3,0.80176]
[1749232296945,0.80179,2492.3,2492.2,0.80176]
[1749232297138,2.29879604,2492.3,2492.2,0.80176]
[1749232297337,0.80179,2492.3,2492.2,0.80176]
[1749232297546,0.80777277,2492.4,2492.3,0.80176]
[1749232297940,2.30477881,2492.4,2492.3,0.80176]
[1749232302451,1.50302881,2492.4,2492.3,4.00956]
[1749232303342,2.30475881,2492.4,2492.3,4.00956]
[1749232303748,1.50302881,2492.4,2492.3,4.00956]
[1749232304247,2.30475881,2492.4,2492.3,5.33836]
[1749232305957,0.00602277,2492.4,2492.3,5.33836]
[1749232307951,0.00602277,2492.4,2492.3,10.20136]
[1749232310657,0.07735628,2492.4,2492.3,10.20136]
[1749232311060,10.92286,2493.0,2492.9,0.80157]
[1749232311061,0.6638,2493.0,2492.9,0.80157]
[1749232311358,0.80157,2492.9,2492.8,3.2078]
[1749232311753,2.29857604,2492.9,2492.8,3.2078]
[1749232312353,2.29857604,2492.9,2492.8,4.00937]
[1749232316261,3.18617425,2492.9,2492.8,4.00937]
[1749232317060,3.18617425,2492.9,2492.8,3.2078]
[1749232317468,0.80169,2492.6,2492.5,0.80165]
[1749232317763,0.80175,2492.5,2492.4,0.8017]
[1749232318067,2.29866604,2492.6,2492.5,0.80169]
[1749232318757,3.187006,2492.6,2492.5,0.80169]
[1749232318959,2.29866604,2492.6,2492.5,0.80169]
[1749232319355,3.18703146,2492.6,2492.5,0.80169]
[1749232320056,0.80173,2492.5,2492.4,0.80169]
[1749232321961,3.18734696,2492.5,2492.4,0.80169]
[1749232323463,3.18659588,2492.5,2492.4,0.80169]
[1749232324568,2.38486588,2492.5,2492.4,0.80169]
[1749232324863,2.45619939,2492.5,2492.4,0.80169]
[1749232325064,3.25788939,2492.5,2492.4,0.80169]
[1749232325667,2.45619939,2492.5,2492.2,3.2078]
[1749232325859,2.29876604,2492.3,2492.2,3.2078]
[1749232326064,0.80186,2492.0,2491.9,0.00602277]
[1749232326367,2.29886604,2492.0,2491.9,0.00602277]
[1749232327062,3.18718769,2492.0,2491.9,0.00602277]
[1749232327766,6.39498769,2492.0,2491.9,0.00602277]
[1749232327975,0.80214,2491.2,2491.0,5.60974068]
[1749232328259,2.29914604,2491.2,2491.1,0.80214]
[1749232328566,0.80214,2491.1,2491.0,4.00997]
[1749232328763,1.49700604,2491.1,2491.0,4.00997]
[1749232328956,2.29915604,2491.1,2491.0,4.00997]
[1749232329265,2.29915604,2491.1,2491.0,3.2078]
[1749232329964,2.29915604,2491.1,2491.0,4.00998]
[1749232330157,1.49700604,2491.1,2491.0,4.00998]
[1749232330558,2.29914604,2491.1,2491.0,4.00998]
[1749232332255,2.29914604,2491.1,2491.0,3.2078]
[1749232332861,2.29914604,2491.1,2491.0,4.00998]
[1749232333267,1.49700604,2491.1,2491.0,4.00998]
[1749232336155,0.00602277,2491.3,2491.2,0.80211]
[1749232336370,2.77e-06,2491.3,2491.2,0.80211]
[1749232336559,0.80191,2491.9,2491.5,2.00501]
[1749232336759,0.80191,2491.9,2491.8,0.80187]
[1749232337164,1.49700604,2491.9,2491.8,0.80187]
[1749232338867,2.29889604,2491.9,2491.8,0.80187]
[1749232339464,1.49700604,2491.9,2491.8,0.80187]
[1749232340167,0.00602277,2492.1,2492.0,0.80185]
[1749232340368,1.50302881,2492.1,2492.0,0.80185]
[1749232340568,2.30484881,2492.1,2492.0,0.80185]
[1749232341670,1.50302881,2492.1,2492.0,0.80185]
[1749232342568,2.30484881,2492.1,2492.0,0.80185]
[1749232345066,5.21147,2493.3,2492.0,9.855]
[1749232345268,2.29860604,2492.8,2492.7,0.80163]
[1749232345469,0.80173,2492.4,2492.3,3.2078]
[1749232345676,2.29873604,2492.4,2492.3,4.00956]
[1749232345972,0.80179,2492.3,2492.2,0.80178]
[1749232346268,2.29879604,2492.2,2492.1,2.08889]
[1749232346469,2.29879604,2492.2,2492.1,0.6566]
[1749232346666,2.29879604,2492.2,2492.0,2.12035277]
[1749232346667,0.80182,2492.1,2492.0,0.00602277]
[1749232346973,2.29882604,2492.1,2492.0,0.00602277]
[1749232347169,3.66232604,2492.1,2492.0,0.00602277]
[1749232348072,4.5458258,2492.1,2492.0,0.00602277]
[1749232348374,4.54604768,2492.1,2492.0,0.00602277]
[1749232355475,3.25388119,2492.1,2492.0,0.80787277]
[1749232355674,0.07133351,2492.1,2492.0,0.80787277]
[1749232355873,0.07133351,2492.1,2492.0,2.09287277]
[1749232358778,0.87315351,2492.1,2492.0,2.09287277]
[1749232359469,0.07133351,2492.1,2492.0,2.09287277]
[1749232360078,0.87315351,2492.1,2492.0,2.09287277]
[1749232361078,0.87315351,2492.1,2492.0,5.66287277]
[1749232363474,3.25629189,2492.1,2492.0,0.00602277]
[1749232364176,4.55279189,2492.1,2492.0,0.00602277]
[1749232365974,0.80195,2491.7,2491.6,4.00977]
[1749232366273,2.29895604,2491.7,2491.6,4.00977]
[1749232366479,3.18668571,2491.7,2491.6,4.00977]
[1749232366879,2.38473571,2491.7,2491.6,5.27487]
[1749232367089,3.18668571,2491.7,2491.6,5.27487]
[1749232368880,2.38473571,2491.7,2491.6,5.27487]
[1749232369580,3.18668571,2491.7,2491.6,5.27487]
[1749232369980,0.88772967,2491.7,2491.6,5.27487]
[1749232370283,0.00602277,2491.9,2491.8,0.80192]
[1749232370472,2.38999482,2491.9,2491.8,0.80192]
[1749232370676,2.38999482,2491.9,2491.8,2.10422]
[1749232371084,3.19188482,2491.9,2491.8,2.10422]
[1749232371381,0.80192,2491.8,2491.7,1.48454]
[1749232371684,3.18589205,2491.8,2491.7,1.48454]
[1749232371883,1.68888601,2491.8,2491.7,1.48454]
[1749232372575,0.88696601,2491.8,2491.7,1.48454]
[1749232372981,0.88696601,2491.8,2491.7,2.78684]
[1749232374080,1.68888601,2491.8,2491.7,2.78684]
[1749232374984,0.88696601,2491.8,2491.7,2.78684]
[1749232375184,0.00602277,2491.9,2491.8,0.80192]
[1749232375388,1.69540928,2491.9,2491.8,2.10352]
[1749232376179,1.69540948,2491.9,2491.8,2.10352]
[1749232376684,0.89349948,2491.9,2491.8,2.10352]
[1749232376985,1.69538948,2491.9,2491.8,2.10352]
[1749232377388,0.89349948,2491.9,2491.8,2.10352]
[1749232377882,1.69538948,2491.9,2491.8,2.10352]
[1749232379381,1.69566545,2491.9,2491.8,2.10352]
[1749232380581,3.19267149,2491.9,2491.8,0.80192]
[1749232380876,3.19267969,2491.9,2491.8,0.80192]
[1749232381072,0.80192,2491.8,2491.7,4.69233]
[1749232381283,3.18668692,2491.8,2491.7,4.69233]
[1749232381479,1.68968088,2491.8,2491.7,5.99963]
[1749232381782,0.88776088,2491.8,2491.7,5.99963]
[1749232384088,1.68968088,2491.8,2491.7,5.99963]
[1749232384278,0.88776088,2491.8,2491.7,5.99963]
[1749232384985,0.80793277,2491.9,2491.8,0.80192]
[1749232385190,1.69586343,2491.9,2491.8,0.80192]
[1749232385781,1.76719694,2491.9,2491.8,0.80192]
[1749232389689,3.26420298,2491.9,2491.8,0.80192]
[1749232389985,0.80192,2491.8,2491.7,3.2078]
[1749232390186,3.1868567,2491.8,2491.7,4.00975]
[1749232390387,2.3849367,2491.8,2491.7,4.00975]
[1749232390587,3.1868567,2491.8,2491.7,4.00975]
[1749232390992,0.80202,2491.5,2491.4,3.21382277]
[1749232391288,2.29902604,2491.5,2491.4,4.01587277]
[1749232391485,1.6906281,2491.5,2491.4,4.01587277]
[1749232391682,3.18763414,2491.5,2491.4,4.01587277]
[1749232391983,3.18763414,2491.5,2491.4,3.21382277]
[1749232392895,3.18763414,2491.5,2491.4,0.00602277]
[1749232393083,0.80218,2491.1,2490.9,3.2078]
[1749232393285,3.04511414,2491.0,2490.9,4.01001]
[1749232393893,0.8886081,2491.0,2490.9,4.01001]
[1749232394086,0.6457,2491.4,2491.3,0.80208]
[1749232394286,3.03022668,2491.4,2491.3,0.80208]
[1749232394586,1.49700604,2491.4,2491.3,0.80208]
[1749232394793,0.6457,2491.8,2491.7,0.80195]
[1749232394989,0.80198,2491.7,2491.6,0.80197]
[1749232395189,0.80198,2491.7,2491.3,0.80207]
[1749232395190,0.80208,2491.4,2491.3,0.80207]
[1749232395384,2.38437135,2491.4,2491.2,3.8888]
[1749232395589,3.18649035,2491.3,2491.2,3.2078]
[1749232395789,3.83219035,2491.3,2491.2,3.2078]
[1749232396283,3.03011035,2491.3,2491.2,4.00991]
[1749232396591,0.80203,2491.5,2491.4,0.80205]
[1749232396778,0.88700818,2491.5,2491.4,0.80205]
[1749232396989,2.38401422,2491.5,2491.4,0.80205]
[1749232397291,3.18603422,2491.5,2491.4,0.80205]
[1749232397483,2.38401422,2491.5,2491.4,0.80205]
[1749232398011,0.88700818,2491.5,2491.4,0.80205]
[1749232398190,0.07735628,2491.9,2491.7,0.80193]
[1749232398389,1.68798326,2491.8,2491.7,0.80193]
[1749232398692,3.1849893,2491.8,2491.7,0.80193]
[1749232400087,0.88603326,2491.8,2491.7,0.80193]
[1749232400486,1.68795326,2491.8,2491.7,0.80193]
[1749232400691,0.80192,2491.8,2491.7,0.80193]
[1749232400888,0.80198,2491.7,2491.6,0.80196]
[1749232401094,0.88604704,2491.7,2491.6,0.80198]
[1749232401294,1.68799704,2491.7,2491.6,0.80198]
[1749232401593,0.88604704,2491.7,2491.6,0.80198]
[1749232401787,0.80195,2491.7,2491.6,0.80198]
[1749232401987,1.68799704,2491.7,2491.6,0.80198]
[1749232402187,1.68799704,2491.7,2491.5,4.66388]
[1749232402188,0.80198,2491.6,2491.5,4.66388]
[1749232402388,2.29898604,2491.6,2491.5,9.51988]
[1749232402595,0.80198,2491.6,2491.5,9.51988]
[1749232403201,0.80198,2491.6,2491.5,4.66388]
[1749232404694,0.80208,2491.4,2491.3,5.65804]
[1749232404995,2.29908604,2491.4,2491.3,0.80204]
[1749232405195,1.49700604,2491.4,2491.3,0.80204]
[1749232405597,2.29905604,2491.4,2491.3,0.80204]
[1749232406198,2.29905604,2491.4,2491.2,4.00988]
[1749232406199,0.80208,2491.3,2491.2,4.00988]
[1749232406396,2.29908604,2491.3,2491.2,4.00988]
[1749232407103,2.37041955,2491.3,2491.2,4.00988]
[1749232409400,1.56833955,2491.3,2491.2,4.00988]
[1749232409796,0.07133351,2491.3,2491.2,4.00988]
[1749232410000,0.07133351,2491.3,2491.2,5.36618]
[1749232412098,0.07133351,2491.3,2491.2,10.36618]
[1749232412703,0.80791277,2491.9,2491.8,0.80192]
[1749232412898,0.89240845,2491.9,2491.8,4.00972]
[1749232413096,3.19130449,2491.9,2491.8,4.00972]
[1749232414104,0.89240845,2491.9,2491.8,5.36452]
[1749232414507,0.89236455,2491.9,2491.8,5.36452]
[1749232414706,0.00602277,2491.9,2491.8,5.36452]
[1749232424803,1.49773,2492.4,2492.3,0.80176]
[1749232425009,1.49773,2492.4,2492.3,4.00956]
[1749232425210,2.99473604,2492.4,2492.3,4.00956]
[1749232426012,2.99473604,2492.4,2492.3,3.2078]
[1749232426209,2.99473604,2492.4,2492.3,4.00956]
[1749232426409,3.88096494,2492.4,2492.3,4.00956]
[1749232426710,3.88096494,2492.4,2492.3,3.2078]
[1749232429009,0.80179,2492.2,2492.1,0.00602277]
[1749232429214,3.18502494,2492.2,2492.1,0.00602277]
[1749232433224,0.80199,2491.7,2491.6,3.2078]
[1749232433415,2.29899604,2491.7,2491.6,3.2078]
[1749232433618,2.29899604,2491.7,2491.6,4.00978]
[1749232437819,1.3448,2491.9,2491.6,4.00978]
[1749232438124,0.80181,2492.3,2492.2,0.80176]
[1749232438327,3.85174981,2492.3,2492.2,0.80176]
[1749232438719,0.80179,2492.2,2492.1,4.0096]
[1749232438920,0.07133351,2492.4,2492.1,3.2078]
[1749232439229,0.07133351,2492.4,2492.2,1.44259]
[1749232439230,1.49700604,2492.3,2492.2,1.44259]
[1749232439523,1.49700604,2492.3,2492.2,2.74359]
[1749232439723,0.80176,2492.3,2492.2,1.44259]
[1749232440028,0.07133351,2492.4,2492.3,0.80176]
[1749232440424,1.56833955,2492.4,2492.3,2.10276]
[1749232440920,0.07133351,2492.4,2492.3,2.10276]
[1749232441129,0.00602277,2492.6,2492.5,0.8017]
[1749232441315,0.00602277,2492.6,2492.5,8.8605]
[1749232441728,4.851,2493.5,2493.1,2.0037]
[1749232442023,1.49700604,2493.2,2493.1,3.2078]
[1749232442326,11.17441791,2494.2,2493.4,2.00349]
[1749232442522,0.80128,2493.8,2493.6,3.2078]
[1749232442725,1.49700604,2493.8,2493.6,3.2078]
[1749232442925,0.80129,2493.8,2493.6,3.2078]
[1749232443125,0.00602277,2493.9,2493.7,1.3885]
[1749232443325,0.80730277,2493.9,2493.8,0.80129]
[1749232443523,0.00602277,2493.9,2493.8,0.80129]
[1749232443726,1.50302881,2493.9,2493.8,0.80129]
[1749232445227,2.30429881,2493.9,2493.7,2.18981]
[1749232445530,1.49700604,2493.8,2493.7,2.18984]
[1749232445928,0.00602277,2493.9,2493.8,0.8013]
[1749232446230,0.00602277,2493.9,2493.8,2.1138]
[1749232446430,1.50302881,2493.9,2493.8,2.1138]
[1749232446630,0.00602277,2493.9,2493.8,2.1138]
[1749232447329,0.00602277,2493.9,2493.8,7.1138]
[1749232448324,0.00602277,2493.9,2493.8,2.1138]
[1749232448719,0.00602277,2493.9,2493.8,6.9628]
[1749232449832,0.80729277,2493.9,2493.8,6.9628]
[1749232450030,0.00602277,2493.9,2493.8,6.9618]
[1749232450229,0.00602277,2493.9,2493.8,2.1138]
[1749232450431,0.00602277,2493.9,2493.8,6.9618]
[1749232450923,0.80729277,2493.9,2493.8,1.3125]
[1749232451133,0.80729277,2493.9,2493.8,5.64931]
[1749232451327,0.00602277,2493.9,2493.8,5.64931]
[1749232453133,0.80729277,2493.9,2493.8,5.64931]
[1749232453432,0.00602277,2493.9,2493.8,5.64931]
[1749232453625,0.80134,2493.7,2493.6,3.8448]
[1749232453934,1.49700604,2493.7,2493.6,4.00917]
[1749232454133,1.49700604,2493.7,2493.6,3.2078]
[1749232454328,2.29834604,2493.7,2493.6,3.2078]
[1749232454931,2.29834604,2493.7,2493.6,4.00917]
[1749232455132,1.49700604,2493.7,2493.6,4.00917]
[1749232455431,2.29834604,2493.7,2493.6,4.00917]
[1749232455828,1.49700604,2493.7,2493.6,4.00917]
[1749232456234,2.29834604,2493.7,2493.6,4.00917]
[1749232456531,2.29834604,2493.7,2493.6,3.2078]
[1749232456831,2.29834604,2493.7,2493.6,4.00917]
[1749232457933,1.49700604,2493.7,2493.6,4.00917]
[1749232458328,0.6733,2493.8,2493.7,0.80134]
[1749232458526,0.00602277,2493.9,2493.8,0.80131]
[1749232458731,1.50302881,2493.9,2493.8,0.80131]
[1749232459637,1.50302881,2493.9,2493.8,2.13391]
[1749232459834,2.30429881,2493.9,2493.8,0.80131]
[1749232460024,1.50302881,2493.9,2493.8,0.80131]
[1749232460429,0.00602277,2493.9,2493.8,2.13391]
[1749232461425,0.00602277,2493.9,2493.8,2.76791]
[1749232462033,0.6879,2494.6,2494.1,2.003]
[1749232462338,1.49700604,2494.4,2494.3,0.80115]
[1749232462538,1.49700604,2494.4,2494.3,2.17175]
[1749232462742,1.48896,2494.6,2494.4,0.80109]
[1749232463037,0.6879,2494.6,2494.5,0.80108]
[1749232463435,2.18490604,2494.6,2494.5,0.80108]
[1749232464736,2.98596604,2494.6,2494.4,0.80109]
[1749232465043,1.49700604,2494.5,2494.4,0.80109]
[1749232466238,1.49700604,2494.5,2494.2,4.00897]
[1749232466444,1.49700604,2494.3,2494.2,0.80116]
[1749232466640,3.18442514,2494.3,2493.9,8.20488]
[1749232466839,1.49700604,2494.0,2493.8,3.8418]
[1749232467043,1.49700604,2494.0,2493.9,0.80126]
[1749232467238,2.38435187,2494.0,2493.9,0.80126]
[1749232467444,0.80127,2493.9,2493.8,4.00908]